fUST/lending_fUST_20250310
["ID","MTS","AMOUNT","RATE_DAILY","PERIOD"]
[355793462,1741564236142,-40763.74039646,0.00053341,120]
[355793463,1741564236175,-153.32,0.00054,54]
[355793464,1741564236210,-153.32,0.00054,54]
[355793465,1741564236237,-392.36831152,0.00054073,2]
[355793466,1741564236264,-489.05,0.000545,30]
[355793467,1741564236291,-500.0,0.00054794,120]
[355793468,1741564236318,-500.0,0.00054794,5]
[355793469,1741564236343,-500.0,0.00054794,120]
[355793470,1741564236368,-500.0,0.00054794,120]
[355793471,1741564236394,-500.0,0.00054794,120]
[355793472,1741564236421,-531.08792632,0.00054794,120]
[355793473,1741564236451,-507.51903739,0.00054794,120]
[355793474,1741564236478,-595.49042379,0.00054794,120]
[355793475,1741564236504,-517.42,0.00054794,120]
[355793476,1741564236531,-500.0,0.00054794,120]
[355793477,1741564236557,-500.0,0.00054794,120]
[355793478,1741564236584,-500.0,0.00054794,120]
[355793479,1741564236611,-534.24400169,0.00054794,120]
[355793480,1741564236637,-506.89064737,0.00054794,120]
[355793481,1741564236664,-524.99769307,0.00054794,120]
[355793482,1741564236692,-533.2130661,0.00054794,120]
[355793483,1741564236725,-511.15303544,0.00054794,120]
[355793484,1741564236752,-516.31345376,0.00054794,120]
[355793485,1741564236779,-527.35914783,0.00054794,120]
[355793486,1741564236808,-514.69938551,0.00054794,120]
[355793487,1741564236836,-517.04742444,0.00054794,120]
[355793488,1741564236863,-521.15375836,0.00054794,120]
[355793489,1741564236890,-522.73989978,0.00054794,120]
[355793490,1741564236916,-500.0,0.00054794,120]
[355793491,1741564236944,-510.96805968,0.00054794,120]
[355793492,1741564236970,-500.0,0.00054794,120]
[355793493,1741564237098,-621.44417064,0.00054794,120]
[355793494,1741564237126,-500.0,0.00054794,120]
[355793495,1741564237153,-509.7657884,0.00054794,120]
[355793496,1741564237179,-302.95782474,0.00054794,120]
[355793497,1741564237207,-517.47120336,0.00054794,120]
[355793498,1741564237235,-500.0,0.00054794,120]
[355793499,1741564237262,-500.0,0.00054794,120]
[355793500,1741564237290,-500.0,0.00054794,120]
[355793501,1741564237317,-500.0,0.00054794,120]
[355793502,1741564237344,-500.0,0.00054794,120]
[355793503,1741564237373,-500.0,0.00054794,2]
[355793504,1741564237401,-500.0,0.00054794,120]
[355793505,1741564237427,-520.15600478,0.00054794,120]
[355793506,1741564237456,-500.0,0.00054794,120]
[355793507,1741564237485,-500.0,0.00054794,120]
[355793508,1741564237514,-500.0,0.00054794,120]
[355793511,1741564237546,-1000.98215151,0.00054794,5]
[355793515,1741564237575,-234.0763462,0.00054794,120]
[355793519,1741564237602,-595.21399472,0.00054794,120]
[355793525,1741564237629,-500.0,0.00054794,120]
[355793531,1741564237656,-558.2,0.00054794,120]
[355793535,1741564237683,-500.0,0.00054794,120]
[355793538,1741564237714,-500.0,0.00054794,120]
[355793539,1741564237741,-500.0,0.00054794,120]
[355793540,1741564237769,-477.40270064,0.00054794,120]
[355793541,1741564237798,-500.0,0.00054794,120]
[355793542,1741564237826,-1000.0,0.00054794,30]
[355793543,1741564237852,-500.0,0.00054794,120]
[355793544,1741564237887,-500.0,0.00054794,120]
[355793545,1741564237914,-500.0,0.00054794,120]
[355793546,1741564237943,-500.0,0.00054794,120]
[355793547,1741564237971,-500.0,0.00054794,120]
[355793548,1741564237998,-934.58,0.00054794,120]
[355793549,1741564238027,-500.0,0.00054794,120]
[355793550,1741564238055,-500.0,0.00054794,120]
[355793553,1741564238082,-500.0,0.00054794,120]
[355793557,1741564238109,-500.0,0.00054794,120]
[355793560,1741564238138,-500.0,0.00054794,120]
[355793561,1741564238167,-500.0,0.00054794,120]
[355793563,1741564238199,-589.88,0.00054794,120]
[355793564,1741564238226,-3489.58,0.00054794,7]
[355793565,1741564238254,-500.0,0.00054794,120]
[355793566,1741564238281,-500.0,0.00054794,120]
[355793567,1741564238308,-500.0,0.00054794,120]
[355793568,1741564238335,-500.0,0.00054794,120]
[355793569,1741564238361,-500.0,0.00054794,120]
[355793570,1741564238388,-500.0,0.00054794,120]
[355793571,1741564238415,-500.0,0.00054794,120]
[355793572,1741564238443,-500.0,0.00054794,120]
[355793573,1741564238470,-500.0,0.00054794,120]
[355793574,1741564238496,-500.0,0.00054794,60]
[355793575,1741564238523,-500.0,0.00054794,120]
[355793576,1741564238550,-500.0,0.00054794,120]
[355793577,1741564238576,-500.0,0.00054794,120]
[355793578,1741564238604,-500.0,0.00054794,120]
[355793579,1741564238631,-500.0,0.00054794,120]
[355793580,1741564238657,-500.0,0.00054794,120]
[355793581,1741564238686,-500.0,0.00054794,120]
[355793582,1741564238716,-500.0,0.00054794,120]
[355793583,1741564238743,-500.0,0.00054794,120]
[355793584,1741564238771,-529.96954304,0.00054794,120]
[355793585,1741564238799,-500.0,0.00054794,120]
[355793586,1741564238826,-500.0,0.00054794,120]
[355793587,1741564238854,-500.0,0.00054794,120]
[355793588,1741564238884,-500.0,0.00054794,120]
[355793589,1741564238911,-500.0,0.00054794,120]
[355793590,1741564238937,-500.0,0.00054794,120]
[355793591,1741564238965,-500.0,0.00054794,120]
[355793592,1741564238992,-500.0,0.00054794,120]
[355793593,1741564239019,-500.0,0.00054794,120]
[355793594,1741564239048,-500.0,0.00054794,120]
[355793595,1741564239074,-500.0,0.00054794,120]
[355793596,1741564239101,-500.0,0.00054794,120]
[355793597,1741564239129,-500.0,0.00054794,120]
[355793598,1741564239157,-500.0,0.00054794,120]
[355793599,1741564239186,-500.0,0.00054794,120]
[355793600,1741564239214,-500.0,0.00054794,120]
[355793601,1741564239241,-500.0,0.00054794,120]
[355793602,1741564239269,-500.0,0.00054794,120]
[355793603,1741564239296,-500.0,0.00054794,120]
[355793604,1741564239324,-500.0,0.00054794,120]
[355793605,1741564239351,-552.82,0.00054794,120]
[355793606,1741564239377,-500.0,0.00054794,15]
[355793607,1741564239405,-500.0,0.00054794,120]
[355793608,1741564239432,-500.0,0.00054794,120]
[355793609,1741564239459,-507.56963508,0.00054794,120]
[355793610,1741564239485,-500.0,0.00054794,120]
[355793613,1741564239511,-1000.0,0.00054794,2]
[355793617,1741564239537,-549.69538204,0.00054794,120]
[355793621,1741564239564,-500.0,0.00054794,120]
[355793624,1741564239590,-510.66470812,0.00054794,120]
[355793625,1741564239616,-531.20748648,0.00054794,120]
[355793626,1741564239642,-522.47919,0.00054794,120]
[355793629,1741564239668,-518.39816786,0.00054794,120]
[355793630,1741564239695,-525.0207852,0.00054794,120]
[355793631,1741564239723,-515.79767453,0.00054794,120]
[355793632,1741564239750,-500.0,0.00054794,120]
[355793633,1741564239778,-528.16151253,0.00054794,120]
[355793635,1741564239805,-520.86569643,0.00054794,120]
[355793637,1741564239833,-500.0,0.00054794,120]
[355793638,1741564239860,-512.5402185,0.00054794,120]
[355793639,1741564239889,-500.0,0.00054794,120]
[355793640,1741564239915,-516.62199173,0.00054794,120]
[355793642,1741564239940,-9999.0,0.00054794,2]
[355793643,1741564239968,-558.63,0.00054794,120]
[355793644,1741564239994,-2960.23,0.00054795,10]
[355793645,1741564240019,-163.46,0.000548,30]
[355793646,1741564240044,-1000.0,0.00054968,60]
[355793647,1741564240069,-446.88473838,0.00055068,120]
[355793648,1741564240094,-541.2908999,0.00055068,5]
[355793649,1741564240121,-272.47,0.00055068,120]
[355793650,1741564240147,-500.0,0.00055068,120]
[355793651,1741564240173,-500.0,0.00055068,120]
[355793652,1741564240200,-500.0,0.00055068,120]
[355793653,1741564240226,-500.0,0.00055068,120]
[355793654,1741564240252,-500.0,0.00055068,120]
[355793655,1741564240384,-500.0,0.00055068,2]
[355793656,1741564240412,-500.0,0.00055068,120]
[355793657,1741564240440,-500.0,0.00055068,120]
[355793658,1741564240469,-500.0,0.00055068,120]
[355793659,1741564240497,-558.2,0.00055068,120]
[355793660,1741564240525,-500.0,0.00055068,120]
[355793661,1741564240553,-500.0,0.00055068,120]
[355793662,1741564240580,-1000.0,0.00055068,30]
[355793663,1741564240608,-500.0,0.00055068,120]
[355793664,1741564240636,-500.0,0.00055068,120]
[355793665,1741564240663,-500.0,0.00055068,120]
[355793666,1741564240689,-934.58,0.00055068,120]
[355793667,1741564240722,-500.0,0.00055068,120]
[355793668,1741564240751,-500.0,0.00055068,120]
[355793669,1741564240780,-500.0,0.00055068,120]
[355793670,1741564240807,-500.0,0.00055068,120]
[355793671,1741564240836,-500.0,0.00055068,120]
[355793672,1741564240864,-589.88,0.00055068,120]
[355793673,1741564240891,-3489.58,0.00055068,7]
[355793674,1741564240918,-500.0,0.00055068,120]
[355793675,1741564240946,-500.0,0.00055068,120]
[355793676,1741564240973,-500.0,0.00055068,120]
[355793677,1741564241000,-500.0,0.00055068,120]
[355793678,1741564241028,-500.0,0.00055068,120]
[355793679,1741564241054,-500.0,0.00055068,120]
[355793680,1741564241082,-500.0,0.00055068,120]
[355793681,1741564241108,-567.09080278,0.00055068,120]
[355793682,1741564241134,-500.0,0.00055068,60]
[355793683,1741564241161,-529.13705929,0.00055068,120]
[355793684,1741564241188,-500.0,0.00055068,120]
[355793685,1741564241214,-544.76,0.00055068,120]
[355793686,1741564241243,-500.0,0.00055068,120]
[355793687,1741564241269,-581.38,0.00055068,120]
[355793688,1741564241295,-500.0,0.00055068,120]
[355793689,1741564241325,-500.0,0.00055068,120]
[355793690,1741564241351,-198.02,0.00055068,120]
[355793691,1741564241378,-500.0,0.00055068,120]
[355793692,1741564241404,-500.0,0.00055068,120]
[355793693,1741564241431,-503.94,0.00055068,120]
[355793694,1741564241458,-500.0,0.00055068,120]
[355793695,1741564241486,-500.0,0.00055068,120]
[355793696,1741564241519,-500.0,0.00055068,120]
[355793697,1741564241548,-500.0,0.00055068,120]
[355793698,1741564241576,-483.84404987,0.00055068,120]
[355793699,1741564241604,-645.88,0.00055068,120]
[355793700,1741564241632,-500.0,0.00055068,120]
[355793701,1741564241661,-500.0,0.00055068,120]
[355793702,1741564241688,-500.0,0.00055068,120]
[355793703,1741564241719,-500.0,0.00055068,120]
[355793704,1741564241745,-500.0,0.00055068,120]
[355793705,1741564241774,-500.0,0.00055068,120]
[355793706,1741564241803,-500.0,0.00055068,120]
[355793707,1741564241831,-500.0,0.00055068,120]
[355793708,1741564241858,-500.0,0.00055068,120]
[355793709,1741564241885,-314.40554795,0.00055068,120]
[355793710,1741564241911,-500.0,0.00055068,120]
[355793711,1741564241938,-500.0,0.00055068,15]
[355793712,1741564241967,-500.0,0.00055068,120]
[355793713,1741564241994,-500.0,0.00055068,120]
[355793714,1741564242020,-500.0,0.00055068,120]
[355793715,1741564242048,-1000.0,0.00055068,2]
[355793716,1741564242076,-500.0,0.00055068,120]
[355793717,1741564242103,-485.03211396,0.00055068,120]
[355793718,1741564242131,-500.0,0.00055068,120]
[355793719,1741564242161,-9999.0,0.00055068,2]
[355793720,1741564242190,-500.0,0.00055342,120]
[355793721,1741564242227,-500.0,0.00055342,120]
[355793722,1741564242258,-500.0,0.00055342,120]
[355793723,1741564242287,-500.0,0.00055342,120]
[355793724,1741564242315,-554.16094849,0.00055342,120]
[355793725,1741564242342,-306.63670307,0.00055342,2]
[355793726,1741564242369,-500.0,0.00055342,120]
[355793727,1741564242395,-500.0,0.00055342,120]
[355793730,1741564242422,-558.2,0.00055342,120]
[355793735,1741564242450,-500.0,0.00055342,120]
[355793736,1741564242477,-500.0,0.00055342,120]
[355793737,1741564242503,-1000.0,0.00055342,30]
[355793740,1741564242530,-500.0,0.00055342,120]
[355793741,1741564242556,-500.0,0.00055342,120]
[355793742,1741564242583,-500.0,0.00055342,120]
[355793743,1741564242609,-934.58,0.00055342,120]
[355793744,1741564242636,-500.0,0.00055342,120]
[355793745,1741564242662,-500.0,0.00055342,120]
[355793746,1741564242688,-500.0,0.00055342,120]
[355793747,1741564242720,-500.0,0.00055342,120]
[355793748,1741564242749,-500.0,0.00055342,120]
[355793749,1741564242778,-589.88,0.00055342,120]
[355793750,1741564242808,-3489.58,0.00055342,7]
[355793751,1741564242836,-500.0,0.00055342,120]
[355793752,1741564242862,-500.0,0.00055342,120]
[355793753,1741564242890,-500.0,0.00055342,120]
[355793754,1741564242916,-171.34,0.00055342,120]
[355793755,1741564242943,-640.84,0.00055342,120]
[355793756,1741564242969,-500.0,0.00055342,120]
[355793757,1741564242995,-500.0,0.00055342,60]
[355793758,1741564243023,-500.0,0.00055342,120]
[355793759,1741564243049,-500.0,0.00055342,120]
[355793760,1741564243076,-500.0,0.00055342,120]
[355793761,1741564243102,-500.0,0.00055342,120]
[355793762,1741564243128,-500.0,0.00055342,120]
[355793763,1741564243153,-500.0,0.00055342,120]
[355793764,1741564243178,-500.0,0.00055342,120]
[355793765,1741564243205,-500.0,0.00055342,120]
[355793768,1741564243233,-500.0,0.00055342,120]
[355793771,1741564243260,-500.0,0.00055342,120]
[355793776,1741564243286,-500.0,0.00055342,120]
[355793779,1741564243311,-500.0,0.00055342,120]
[355793781,1741564243337,-500.0,0.00055342,15]
[355793784,1741564243362,-500.0,0.00055342,120]
[355793787,1741564243389,-500.0,0.00055342,120]
[355793790,1741564243416,-500.0,0.00055342,120]
[355793792,1741564243442,-1000.0,0.00055342,2]
[355793793,1741564243470,-500.0,0.00055342,120]
[355793794,1741564243499,-500.0,0.00055342,120]
[355793795,1741564243525,-9999.0,0.00055342,2]
[355793796,1741564243660,-500.0,0.00055616,120]
[355793797,1741564243688,-500.0,0.00055616,120]
[355793798,1741564243721,-500.0,0.00055616,120]
[355793799,1741564243749,-500.0,0.00055616,120]
[355793800,1741564243778,-500.0,0.00055616,120]
[355793801,1741564243806,-558.2,0.00055616,120]
[355793802,1741564243833,-500.0,0.00055616,120]
[355793803,1741564243860,-500.0,0.00055616,120]
[355793804,1741564243887,-1000.0,0.00055616,30]
[355793805,1741564243914,-500.0,0.00055616,120]
[355793806,1741564243942,-500.0,0.00055616,120]
[355793807,1741564243972,-500.0,0.00055616,120]
[355793808,1741564243999,-934.58,0.00055616,120]
[355793809,1741564244027,-500.0,0.00055616,120]
[355793811,1741564244064,-500.0,0.00055616,120]
[355793813,1741564244091,-500.0,0.00055616,120]
[355793814,1741564244118,-500.0,0.00055616,120]
[355793815,1741564244146,-589.88,0.00055616,120]
[355793818,1741564244175,-3489.58,0.00055616,7]
[355793819,1741564244204,-500.0,0.00055616,120]
[355793821,1741564244232,-500.0,0.00055616,120]
[355793824,1741564244259,-500.0,0.00055616,60]
[355793828,1741564244284,-500.0,0.00055616,120]
[355793832,1741564244311,-500.0,0.00055616,120]
[355793836,1741564244337,-430.71,0.00055616,120]
[355793839,1741564244363,-500.0,0.00055616,120]
[355793842,1741564244389,-500.0,0.00055616,120]
[355793843,1741564244418,-298.95906568,0.00055616,120]
[355793844,1741564244444,-500.0,0.00055616,120]
[355793845,1741564244476,-500.0,0.00055616,120]
[355793846,1741564244508,-500.0,0.00055616,120]
[355793847,1741564244536,-219.33,0.00055616,120]
[355793848,1741564244563,-500.0,0.00055616,120]
[355793849,1741564244590,-500.0,0.00055616,15]
[355793850,1741564244618,-500.0,0.00055616,120]
[355793851,1741564244645,-500.0,0.00055616,120]
[355793852,1741564244672,-500.0,0.00055616,120]
[355793853,1741564244698,-1000.0,0.00055616,2]
[355793854,1741564244727,-500.0,0.00055616,120]
[355793855,1741564244757,-220.68,0.00055616,120]
[355793856,1741564244784,-9999.0,0.00055616,2]
[355793857,1741564244813,-549.50071635,0.0005589,120]
[355793858,1741564244840,-500.0,0.0005589,120]
[355793859,1741564244867,-500.0,0.0005589,120]
[355793860,1741564244896,-500.0,0.0005589,120]
[355793861,1741564244924,-500.0,0.0005589,120]
[355793862,1741564244954,-558.2,0.0005589,120]
[355793863,1741564244981,-500.0,0.0005589,120]
[355793864,1741564245008,-171.28,0.0005589,120]
[355793865,1741564245035,-934.58,0.0005589,120]
[355793866,1741564245064,-500.0,0.0005589,120]
[355793867,1741564245092,-500.0,0.0005589,120]
[355793868,1741564245120,-500.0,0.0005589,120]
[355793869,1741564245149,-438.5,0.0005589,120]
[355793870,1741564245178,-589.88,0.0005589,120]
[355793871,1741564245209,-3489.58,0.0005589,7]
[355793872,1741564245236,-500.0,0.0005589,120]
[355793873,1741564245264,-500.0,0.0005589,60]
[355793874,1741564245291,-530.18,0.0005589,120]
[355793875,1741564245320,-500.0,0.0005589,120]
[355793876,1741564245348,-454.14,0.0005589,120]
[355793877,1741564245375,-500.0,0.0005589,120]
[355793878,1741564245401,-272.14,0.0005589,120]
[355793879,1741564245428,-575.16,0.0005589,120]
[355793880,1741564245458,-500.0,0.0005589,120]
[355793882,1741564245488,-500.0,0.0005589,120]
[355793883,1741564245516,-500.0,0.0005589,15]
[355793884,1741564245544,-500.0,0.0005589,120]
[355793885,1741564245571,-500.0,0.0005589,120]
[355793886,1741564245597,-1000.0,0.0005589,2]
[355793887,1741564245625,-500.0,0.0005589,120]
[355793888,1741564245652,-624.45,0.00056164,120]
[355793892,1741564245679,-500.0,0.00056164,120]
[355793895,1741564245712,-500.0,0.00056164,120]
[355793897,1741564245742,-500.0,0.00056164,120]
[355793899,1741564245771,-558.2,0.00056164,120]
[355793900,1741564245801,-338.58486665,0.00056164,120]
[355793901,1741564245827,-934.58,0.00056164,120]
[355793902,1741564245857,-500.0,0.00056164,120]
[355793903,1741564245885,-500.0,0.00056164,120]
[355793904,1741564245913,-500.0,0.00056164,120]
[355793905,1741564245943,-589.88,0.00056164,120]
[355793906,1741564245973,-3489.58,0.00056164,7]
[355793907,1741564246001,-483.38,0.00056164,120]
[355793908,1741564246029,-500.0,0.00056164,60]
[355793909,1741564246060,-500.0,0.00056164,120]
[355793910,1741564246091,-500.0,0.00056164,120]
[355793911,1741564246121,-500.0,0.00056164,120]
[355793912,1741564246150,-240.99555585,0.00056164,120]
[355793913,1741564246178,-500.0,0.00056164,15]
[355793914,1741564246211,-500.0,0.00056164,120]
[355793915,1741564246240,-500.0,0.00056164,120]
[355793916,1741564246269,-1000.0,0.00056164,2]
[355793917,1741564246297,-500.0,0.00056164,120]
[355793918,1741564246325,-2000.0,0.00056288,15]
[355793919,1741564246358,-153.32,0.000564,57]
[355793920,1741564246390,-153.32,0.000564,57]
[355793921,1741564246417,-500.0,0.00056438,120]
[355793922,1741564246443,-500.0,0.00056438,120]
[355793923,1741564246476,-500.0,0.00056438,120]
[355793924,1741564246503,-558.2,0.00056438,120]
[355793925,1741564246531,-934.58,0.00056438,120]
[355793926,1741564246558,-500.0,0.00056438,120]
[355793927,1741564246587,-500.0,0.00056438,120]
[355793928,1741564246614,-500.0,0.00056438,120]
[355793929,1741564246641,-589.88,0.00056438,120]
[355793930,1741564246668,-3489.58,0.00056438,7]
[355793931,1741564246695,-566.74,0.00056438,60]
[355793932,1741564246728,-500.0,0.00056438,120]
[355793933,1741564246754,-500.0,0.00056438,120]
[355793934,1741564246784,-500.0,0.00056438,120]
[355793935,1741564246812,-577.80720554,0.00056438,15]
[355793936,1741564246839,-500.0,0.00056438,120]
[355793937,1741564246865,-500.0,0.00056438,120]
[355793938,1741564246996,-1000.0,0.00056438,2]
[355793939,1741564247026,-500.0,0.00056438,120]
[355793940,1741564247052,-501.29059015,0.00056476,15]
[355793941,1741564247078,-500.0,0.00056476,15]
[355793942,1741564247105,-500.0,0.00056476,15]
[355793943,1741564247132,-561.94957559,0.00056476,5]
[355793944,1741564247159,-500.0,0.00056476,15]
[355793945,1741564247191,-500.0,0.00056476,15]
[355793946,1741564247220,-500.0,0.00056476,14]
[355793947,1741564247247,-608.72724872,0.00056476,15]
[355793948,1741564247274,-500.0,0.00056476,15]
[355793949,1741564247301,-500.0,0.00056476,14]
[355793950,1741564247327,-500.0,0.00056476,14]
[355793951,1741564247353,-500.0,0.00056476,14]
[355793952,1741564247380,-502.39876251,0.00056476,15]
[355793953,1741564247406,-500.0,0.00056476,14]
[355793954,1741564247433,-504.04743059,0.00056476,2]
[355793955,1741564247460,-500.0,0.00056476,10]
[355793956,1741564247489,-500.0,0.00056476,15]
[355793957,1741564247516,-500.0,0.00056476,15]
[355793958,1741564247544,-500.0,0.00056476,14]
[355793959,1741564247570,-500.0,0.00056664,15]
[355793960,1741564247597,-500.0,0.00056664,15]
[355793961,1741564247623,-379.6,0.00056712,120]
[355793962,1741564247650,-245.75747348,0.00056712,120]
[355793963,1741564247677,-500.0,0.00056712,120]
[355793964,1741564247707,-558.2,0.00056712,120]
[355793965,1741564247735,-934.58,0.00056712,120]
[355793966,1741564247764,-226.22,0.00056712,120]
[355793967,1741564247791,-500.0,0.00056712,120]
[355793968,1741564247823,-500.0,0.00056712,120]
[355793969,1741564247853,-589.88,0.00056712,120]
[355793970,1741564247881,-3489.58,0.00056712,7]
[355793971,1741564247910,-500.0,0.00056712,120]
[355793972,1741564247937,-500.0,0.00056712,120]
[355793973,1741564247969,-500.0,0.00056712,120]
[355793974,1741564247998,-500.0,0.00056712,120]
[355793975,1741564248025,-500.0,0.00056712,120]
[355793976,1741564248057,-1000.0,0.00056712,2]
[355793977,1741564248084,-351.42,0.00056712,120]
[355793978,1741564248111,-500.0,0.00056986,120]
[355793979,1741564248139,-558.2,0.00056986,120]
[355793980,1741564248165,-934.58,0.00056986,120]
[355793981,1741564248195,-500.0,0.00056986,120]
[355793982,1741564248227,-500.0,0.00056986,120]
[355793983,1741564248255,-589.88,0.00056986,120]
[355793984,1741564248285,-3489.58,0.00056986,7]
[355793985,1741564248319,-500.0,0.00056986,120]
[355793986,1741564248347,-500.0,0.00056986,120]
[355793987,1741564248376,-500.0,0.00056986,120]
[355793988,1741564248404,-500.0,0.00056986,120]
[355793989,1741564248432,-500.0,0.00056986,120]
[355793990,1741564248460,-284.62,0.00056986,2]
[355793991,1741564248487,-2250.0,0.00057,120]
[355793992,1741564248516,-318.588859,0.00057174,2]
[355793993,1741564248544,-500.0,0.0005726,120]
[355793994,1741564248574,-558.2,0.0005726,120]
[355793995,1741564248601,-934.58,0.0005726,120]
[355793996,1741564248631,-500.0,0.0005726,120]
[355793997,1741564248662,-500.0,0.0005726,120]
[355793998,1741564248693,-589.88,0.0005726,120]
[355793999,1741564248728,-3489.58,0.0005726,7]
[355794000,1741564248758,-500.0,0.0005726,120]
[355794001,1741564248788,-500.0,0.0005726,120]
[355794002,1741564248820,-500.0,0.0005726,120]
[355794003,1741564248853,-500.0,0.0005726,120]
[355794004,1741564248883,-500.0,0.0005726,120]
[355794005,1741564248913,-500.0,0.00057534,120]
[355794006,1741564248942,-558.2,0.00057534,120]
[355794007,1741564248973,-500.0,0.00057534,120]
[355794008,1741564249002,-934.58,0.00057534,120]
[355794009,1741564249033,-500.0,0.00057534,120]
[355794010,1741564249062,-500.0,0.00057534,120]
[355794011,1741564249092,-589.88,0.00057534,120]
[355794012,1741564249125,-3489.58,0.00057534,7]
[355794013,1741564249158,-500.0,0.00057534,120]
[355794014,1741564249189,-500.0,0.00057534,120]
[355794015,1741564249228,-244.26,0.00057534,120]
[355794016,1741564249259,-500.0,0.00057534,120]
[355794017,1741564249290,-500.0,0.00057534,120]
[355794018,1741564249319,-500.0,0.00057808,120]
[355794019,1741564249350,-558.2,0.00057808,120]
[355794020,1741564249380,-934.58,0.00057808,120]
[355794021,1741564249410,-639.07,0.00057808,120]
[355794022,1741564249441,-500.0,0.00057808,120]
[355794023,1741564249476,-589.88,0.00057808,120]
[355794024,1741564249506,-3489.58,0.00057808,7]
[355794025,1741564249536,-500.0,0.00057808,120]
[355794026,1741564249564,-500.0,0.00057808,120]
[355794027,1741564249594,-500.0,0.00057808,120]
[355794028,1741564249623,-500.0,0.00057808,120]
[355794029,1741564249652,-500.0,0.00058082,120]
[355794030,1741564249680,-558.2,0.00058082,120]
[355794031,1741564249712,-934.58,0.00058082,120]
[355794032,1741564249742,-500.0,0.00058082,120]
[355794033,1741564249773,-589.88,0.00058082,120]
[355794034,1741564249804,-3489.58,0.00058082,7]
[355794035,1741564249833,-500.0,0.00058082,120]
[355794036,1741564249860,-500.0,0.00058082,120]
[355794037,1741564249888,-500.0,0.00058082,120]
[355794038,1741564249917,-500.0,0.00058082,120]
[355794039,1741564249944,-500.0,0.00058356,120]
[355794040,1741564249972,-558.2,0.00058356,120]
[355794041,1741564250000,-934.58,0.00058356,120]
[355794042,1741564250028,-500.0,0.00058356,120]
[355794043,1741564250057,-589.88,0.00058356,120]
[355794044,1741564250087,-3489.58,0.00058356,7]
[355794045,1741564250117,-500.0,0.00058356,120]
[355794046,1741564250144,-221.74151397,0.00058356,120]
[355794047,1741564250172,-500.0,0.00058356,120]
[355794048,1741564250200,-500.0,0.00058356,120]
[355794049,1741564250232,-500.0,0.0005863,120]
[355794050,1741564250260,-558.2,0.0005863,120]
[355794051,1741564250287,-934.58,0.0005863,120]
[355794052,1741564250315,-500.0,0.0005863,120]
[355794053,1741564250447,-589.88,0.0005863,120]
[355794054,1741564250479,-3489.58,0.0005863,7]
[355794055,1741564250509,-500.0,0.0005863,120]
[355794056,1741564250537,-500.0,0.0005863,120]
[355794057,1741564250564,-540.33,0.0005863,120]
[355794058,1741564250592,-540.33,0.0005863,120]
[355794059,1741564250620,-540.33,0.0005863,120]
[355794060,1741564250648,-540.33,0.0005863,120]
[355794061,1741564250676,-540.33,0.0005863,120]